bitfinex/quotes_SOLUSD_20250822
["timestamp","ask_amount","ask_price","bid_price","bid_amount"]
[1755900598984,12.1445249,199.86,199.74,37.14020176]
[1755900600355,12.1445249,199.86,199.74,26.0]
[1755900600557,12.1445249,199.86,199.74,37.81020176]
[1755900600984,0.72,199.86,199.75,0.67]
[1755900601183,11.14020176,199.79,199.76,26.0]
[1755900601482,11.14020176,199.79,199.76,26.67]
[1755900601680,0.72,199.83,199.76,26.67]
[1755900601884,11.14020176,199.8,199.77,0.67]
[1755900602094,26.0,199.87,199.76,26.0]
[1755900602397,11.14020176,199.82,199.78,0.67]
[1755900602607,11.14020176,199.83,199.78,0.67]
[1755900602758,11.14020176,199.83,199.79,0.67]
[1755900602966,11.14020176,199.83,199.77,11.14020176]
[1755900603270,11.14020176,199.83,199.78,0.67]
[1755900603466,11.14020176,199.83,199.77,11.14020176]
[1755900603774,11.14020176,199.83,199.79,0.67]
[1755900604081,11.14020176,199.83,199.8,3.6844285]
[1755900604282,0.14216157,199.88,199.79,0.67]
[1755900604283,11.14020176,199.85,199.81,0.67]
[1755900604583,0.72,199.88,199.82,0.67]
[1755900604785,11.14020176,199.89,199.83,14.82580054]
[1755900605085,11.14020176,199.89,199.82,0.67]
[1755900605086,11.14020176,199.91,199.85,11.14020176]
[1755900605391,11.20020176,199.95,199.89,11.14020176]
[1755900605589,0.06,199.95,199.91,11.14020176]
[1755900605768,0.06,199.95,199.92,14.82580054]
[1755900606081,0.06,199.95,199.92,3.68559878]
[1755900606292,0.06,199.95,199.92,4.35559878]
[1755900606965,0.06,199.95,199.92,15.49580054]
[1755900607979,0.06,199.95,199.92,4.35559878]
[1755900609586,0.06,199.95,199.92,41.49580054]
[1755900612665,0.06,199.95,199.92,30.35559878]
[1755900612863,0.06,199.95,199.92,41.49580054]
[1755900613064,0.06,199.95,199.92,37.81020176]
[1755900613264,0.06,199.95,199.92,41.50272653]
[1755900614487,0.06,199.95,199.92,30.36252477]
[1755900614795,0.06,199.95,199.92,3.69252477]
[1755900614999,0.06,199.95,199.92,29.69252477]
[1755900615596,0.78,199.95,199.92,3.69252477]
[1755900615912,0.78,199.95,199.92,29.69252477]
[1755900616198,0.06,199.95,199.92,29.69252477]
[1755900618199,25.0,199.94,199.92,29.69252477]
[1755900618387,0.78,199.93,199.92,3.69252477]
[1755900618892,11.92020176,199.93,199.92,3.69252477]
[1755900619498,0.78,199.93,199.92,3.69252477]
[1755900620710,0.06,199.93,199.92,3.69252477]
[1755900621376,0.78,199.93,199.92,3.69252477]
[1755900621787,11.92020176,199.93,199.92,3.69252477]
[1755900622380,11.92020176,199.93,199.85,11.14020176]
[1755900622581,11.14020176,199.91,199.86,3.69555708]
[1755900622783,11.86020176,199.91,199.87,3.69555708]
[1755900623000,0.06,199.93,199.88,3.69555708]
[1755900623304,25.0,199.9,199.89,3.69575486]
[1755900623485,11.20020176,199.93,199.89,3.69575486]
[1755900623802,11.92020176,199.93,199.9,3.69575486]
[1755900623983,11.92020176,199.93,199.91,3.69575486]
[1755900624183,11.92020176,199.93,199.92,3.69575486]
[1755900624380,0.78,199.93,199.92,3.69575486]
[1755900624591,11.92020176,199.93,199.92,3.69575486]
[1755900624995,11.92020176,199.93,199.88,3.69575486]
[1755900625307,0.72,199.92,199.89,3.69575486]
[1755900625504,11.86020176,199.92,199.9,3.69575486]
[1755900625805,0.72,199.92,199.91,3.69575486]
[1755900626309,7.48589661,199.92,199.91,3.69575486]
[1755900626507,0.72,199.92,199.91,3.69575486]
[1755900626692,0.06,199.93,199.91,3.69575486]
[1755900626886,0.06,199.93,199.92,3.69575486]
[1755900628691,25.06,199.93,199.92,3.69575486]
[1755900629085,0.06,199.93,199.92,3.69575486]
[1755900631217,0.06,199.93,199.92,2.65769386]
[1755900631420,0.06,199.93,199.88,7.42589661]
[1755900631594,0.06,199.93,199.89,0.66]
[1755900632114,0.06,199.93,199.9,0.66]
[1755900632598,6.76589661,199.91,199.84,7.545897]
[1755900632804,6.76589661,199.88,199.83,0.66]
[1755900633011,6.76589661,199.88,199.84,0.66]
[1755900633318,6.76589661,199.89,199.84,0.66]
[1755900633501,7.48589661,199.9,199.83,6.76589661]
[1755900633710,6.76589661,199.9,199.85,0.66]
[1755900634699,7.48589661,199.9,199.85,0.66]
[1755900634933,0.72,199.89,199.81,26.69]
[1755900635232,0.72,199.89,199.81,0.03]
[1755900635533,6.76589661,199.86,199.81,0.03]
[1755900635831,6.76589661,199.86,199.82,0.66]
[1755900636012,7.48589661,199.86,199.81,0.03]
[1755900636217,0.72,199.85,199.81,0.03]
[1755900636520,6.76589661,199.82,199.81,0.03]
[1755900636897,7.48589661,199.82,199.81,0.03]
[1755900637908,0.72,199.82,199.81,0.03]
[1755900638220,7.48589661,199.82,199.81,0.03]
[1755900638527,32.48589661,199.82,199.81,0.03]
[1755900638821,25.0,199.82,199.81,0.03]
[1755900639123,0.72,199.9,199.81,7.45589661]
[1755900639325,6.76589661,199.89,199.83,6.76589661]
[1755900639504,6.76589661,199.89,199.84,0.66]
[1755900639705,6.76589661,199.87,199.82,0.66]
[1755900639901,0.72,199.86,199.81,0.03]
[1755900640105,1.00432314,199.86,199.81,0.03]
[1755900640417,0.72,199.85,199.81,0.03]
[1755900640594,0.72,199.88,199.81,0.69]
[1755900640795,11.11336343,199.87,199.82,0.66]
[1755900641027,11.11336343,199.87,199.83,0.66]
[1755900641445,11.11336343,199.87,199.84,0.66]
[1755900641617,11.11336343,199.88,199.85,0.66]
[1755900641794,44.92,199.9,199.85,0.66]
[1755900641795,11.11336343,199.89,199.85,0.66]
[1755900641999,11.11336343,199.89,199.81,0.03]
[1755900642000,11.11336343,199.88,199.83,0.66]
[1755900642432,11.11336343,199.87,199.81,11.80336343]
[1755900642627,44.92,199.9,199.82,0.66]
[1755900642830,11.11336343,199.88,199.82,11.77336343]
[1755900643219,11.11336343,199.88,199.83,3.72818092]
[1755900643426,10.0,199.87,199.84,4.38818092]
[1755900643736,10.0,199.87,199.85,3.72818092]
[1755900643901,10.0,199.87,199.86,3.72818092]
[1755900646610,10.0,199.87,199.86,4.38818092]
[1755900646808,11.17336343,199.93,199.86,15.50154435]
[1755900647010,44.8,199.93,199.88,11.11336343]
[1755900647215,44.8,199.93,199.89,4.38818092]
[1755900647545,44.8,199.93,199.9,3.72818092]
[1755900647732,44.8,199.93,199.91,3.72818092]
[1755900647928,44.8,199.93,199.92,3.72818092]
[1755900648435,0.06,199.93,199.92,41.50154435]
[1755900649922,0.06,199.93,199.92,37.77336343]
[1755900650121,0.06,199.93,199.92,41.50294382]
[1755900650842,0.06,199.93,199.92,15.50294382]
[1755900651940,0.06,199.93,199.92,4.38958039]
[1755900652243,0.06,199.93,199.92,41.50294382]
[1755900653137,0.06,199.93,199.92,30.38958039]
[1755900653334,25.48895744,199.93,199.92,3.72958039]
[1755900653538,11.89336343,199.93,199.92,3.72958039]
[1755900653760,25.77328058,199.93,199.92,3.72958039]
[1755900654049,25.77328058,199.93,199.91,0.03]
[1755900654225,11.73336343,199.92,199.91,0.03]
[1755900655829,25.61328058,199.92,199.91,0.03]
[1755900658634,13.87991715,199.91,199.89,0.03]
[1755900658965,50.99328058,199.9,199.89,0.03]
[1755900659124,51.61328058,199.9,199.89,0.03]
[1755900659931,45.18432314,199.9,199.89,0.03]
[1755900660159,44.28,199.9,199.89,0.03]
[1755900660345,6.7676794,199.9,199.89,0.03]
[1755900660664,51.0476794,199.9,199.89,0.03]
[1755900660830,44.28,199.9,199.89,0.71]
[1755900661352,44.28,199.9,199.89,0.03]
[1755900661532,51.0476794,199.9,199.89,0.03]
[1755900661863,0.06,199.93,199.89,0.71]
[1755900662443,0.06,199.93,199.91,6.7676794]
[1755900662651,0.06,199.93,199.92,0.68]
[1755900663267,0.06,199.93,199.92,7.4476794]
[1755900663841,0.06,199.93,199.92,0.68]
[1755900664039,0.06,199.93,199.92,7.4476794]
[1755900665055,0.06,199.93,199.92,0.68]
[1755900666156,0.06,199.93,199.89,0.03]
[1755900666329,0.06,199.93,199.9,0.68]
[1755900666531,0.06,199.93,199.9,26.68]
[1755900666734,0.06,199.93,199.9,26.0]
[1755900667045,0.06,199.93,199.91,0.68]
[1755900667548,0.06,199.93,199.89,0.03]
[1755900667751,0.06,199.93,199.9,0.71]
[1755900668641,0.06,199.93,199.91,0.68]
[1755900669546,0.06,199.93,199.92,37.10114712]
[1755900669859,0.06,199.93,199.92,26.0]
[1755900670047,0.06,199.93,199.92,0.68]
[1755900671060,0.06,199.93,199.92,11.78114712]
[1755900671253,0.06,199.93,199.92,0.68]
[1755900672566,0.06,199.93,199.92,11.78114712]
[1755900673062,0.06,199.93,199.92,0.68]
[1755900673849,0.06,199.93,199.92,11.78114712]
[1755900677370,0.06,199.93,199.92,0.68]
[1755900677562,0.06,199.93,199.92,11.78114712]
[1755900678868,0.06,199.93,199.92,0.68]
[1755900679171,0.06,199.93,199.92,11.78114712]
[1755900680868,0.06,199.93,199.9,26.03]
[1755900681173,0.06,199.93,199.91,11.78114712]
[1755900682457,0.06,199.93,199.92,37.78114712]
[1755900685378,0.06,199.93,199.92,26.68]
[1755900685563,0.06,199.93,199.92,37.78114712]
[1755900686175,0.06,199.93,199.92,26.68]
[1755900686357,0.06,199.93,199.92,37.78114712]
[1755900688265,0.06,199.93,199.92,33.44136682]
[1755900689049,0.06,199.93,199.92,26.0]
[1755900689248,0.06,199.93,199.92,29.71916808]
[1755900689450,0.06,199.93,199.92,29.72034361]
[1755900692161,0.06,199.93,199.92,30.38034361]
[1755900692372,0.06,199.93,199.92,11.14171043]
[1755900692868,0.06,199.93,199.92,30.38034361]
[1755900693058,0.06,199.93,199.92,37.14171043]
[1755900694392,0.06,199.93,199.92,4.38034361]
[1755900694885,0.06,199.93,199.92,11.14327905]
[1755900695461,0.06,199.93,199.92,7.42136682]
[1755900695678,0.06,199.93,199.92,11.14328541]
[1755900697180,0.06,199.93,199.92,4.38191859]
[1755900698075,0.06,199.93,199.92,11.14328541]
[1755900698669,0.06,199.93,199.92,7.42136682]
[1755900698885,0.06,199.93,199.92,37.14295976]
[1755900699087,0.00016435,199.93,199.92,25.02287691]
[1755900700071,0.00016435,199.93,199.92,35.52307699]
[1755900700386,0.06,199.94,199.93,13.87991715]
[1755900700588,0.06,199.94,199.93,41.78424373]
[1755900700786,0.06,199.95,199.94,13.87991715]
[1755900701086,0.06,199.95,199.94,75.22424373]
[1755900701393,0.06,199.95,199.94,85.22424373]
[1755900701770,0.06,199.95,199.94,75.22424373]
[1755900702289,0.06,199.97,199.95,13.87991715]
[1755900702488,0.06,199.97,199.96,24.36287691]
[1755900702877,0.06,199.97,199.96,25.02287691]
[1755900703062,0.06,199.97,199.96,31.78424391]
[1755900704686,0.06,199.97,199.96,25.02287709]
[1755900704887,0.06,199.97,199.96,25.02578383]
[1755900705182,0.06,199.97,199.96,45.72510232]
[1755900705363,0.06,199.97,199.96,45.72389516]
[1755900706267,6.82136682,199.97,199.96,3.72329252]
[1755900706468,7.10568996,199.97,199.96,3.72329252]
[1755900706975,7.10568996,199.97,199.91,0.03]
[1755900707286,20.64128397,199.92,199.91,0.03]
[1755900708398,24.99057969,199.92,199.91,0.03]
[1755900709203,68.15057969,199.92,199.91,0.03]
[1755900709376,24.99057969,199.92,199.91,0.03]
[1755900709691,57.01991715,199.92,199.91,0.03]
[1755900709876,43.54432314,199.93,199.91,0.03]
[1755900710075,11.11066254,199.92,199.91,0.03]
[1755900710282,43.26,199.94,199.91,0.03]
[1755900710488,11.11066254,199.93,199.91,0.03]
[1755900710792,0.20216157,199.97,199.91,0.03]
[1755900710968,11.11066254,199.93,199.92,3.67749315]
[1755900712192,0.06,199.97,199.92,3.67749315]
[1755900712394,11.11066254,199.96,199.93,3.67749315]
[1755900712599,11.11066254,199.95,199.94,3.67749315]
[1755900712786,11.11066254,199.96,199.94,3.67749315]
[1755900713107,11.11066254,199.96,199.95,3.67749315]
[1755900713870,0.06,199.97,199.92,26.0]
[1755900714067,0.06,199.97,199.93,3.67634449]
[1755900714296,0.06,199.97,199.92,26.66]
[1755900714297,11.11066254,199.96,199.94,3.67634449]
[1755900714477,11.11066254,199.96,199.95,3.67634449]
[1755900716576,0.06,199.97,199.95,3.67634449]
[1755900716786,11.17066254,199.97,199.96,3.67634449]
[1755900717211,11.17066254,199.97,199.96,3.67649098]
[1755900717391,0.06,199.97,199.96,3.67649098]
[1755900718493,0.06,199.97,199.96,30.36649098]
[1755900720223,0.06,199.97,199.96,15.47715352]
[1755900720706,0.06,199.99,199.97,13.59559401]
[1755900720910,0.06,199.99,199.98,14.78715352]
[1755900721299,0.06,199.99,199.98,15.47715352]
[1755900722513,0.06,199.99,199.98,4.42006852]
[1755900722690,0.06,199.99,199.98,15.53073106]
[1755900722886,0.06,199.99,199.98,3.73006852]
[1755900723322,0.06,199.99,199.98,29.73006852]
[1755900724013,11.17066254,199.99,199.98,3.73006852]
[1755900725219,0.12,199.99,199.98,3.73006852]
[1755900725409,24.96841812,199.99,199.91,0.03]
[1755900725613,11.11066254,199.92,199.91,0.03]
[1755900726019,13.59559401,199.95,199.91,0.03]
[1755900726200,11.11066254,199.92,199.91,0.03]
[1755900727198,11.11066254,199.93,199.91,0.03]
[1755900727516,11.11066254,199.92,199.91,0.03]
[1755900727823,43.28,199.95,199.91,0.03]
[1755900727997,11.11066254,199.92,199.91,0.03]
[1755900730206,43.22,199.93,199.91,0.03]
[1755900730430,11.11066254,199.92,199.91,0.03]
[1755900732030,43.12,199.93,199.91,0.03]
[1755900732215,11.11066254,199.92,199.91,0.03]
[1755900733446,54.21066254,199.93,199.91,0.03]
[1755900733953,54.17066254,199.93,199.91,0.03]
[1755900734356,43.06,199.93,199.91,0.03]
[1755900734520,54.17066254,199.93,199.91,0.03]
[1755900735256,11.11066254,199.92,199.91,0.03]
[1755900735630,43.06,199.93,199.91,0.03]
[1755900735848,0.14216157,199.96,199.91,0.03]
[1755900736033,26.06,199.99,199.91,0.03]
[1755900736034,11.11066254,199.93,199.91,0.03]
[1755900736236,11.11066254,199.93,199.91,0.72]
[1755900736615,11.11066254,199.93,199.91,0.03]
[1755900736821,54.15066254,199.92,199.91,0.03]
[1755900737864,43.04,199.92,199.91,0.03]
[1755900738072,54.15066254,199.92,199.91,0.03]
[1755900738372,49.80558828,199.92,199.91,0.03]
[1755900740128,63.40118229,199.92,199.91,0.03]
[1755900740325,63.68550543,199.92,199.91,0.03]
[1755900740565,56.91991715,199.92,199.91,0.03]
[1755900740761,63.68550543,199.92,199.91,0.03]
[1755900740973,63.68550543,199.92,199.9,0.03]
[1755900740974,13.87991715,199.91,199.9,0.03]
[1755900741129,39.59559401,199.88,199.87,0.03]
[1755900741327,89.68550543,199.88,199.87,0.03]
[1755900742381,94.03425745,199.88,199.87,0.03]
[1755900744433,11.1143403,199.88,199.87,0.03]
[1755900744738,54.1543403,199.88,199.87,0.03]
[1755900745471,68.03425745,199.88,199.87,0.03]
[1755900745684,43.04,199.88,199.87,0.03]
[1755900745879,11.1143403,199.88,199.87,0.03]
[1755900746396,54.1543403,199.88,199.87,0.03]
[1755900748675,68.03425745,199.88,199.87,0.03]
[1755900748866,24.99425745,199.88,199.87,0.03]
[1755900749072,68.03425745,199.88,199.87,0.03]
[1755900749285,56.91991715,199.88,199.87,0.03]
[1755900749494,68.03425745,199.88,199.87,0.03]
[1755900749873,79.0,199.93,199.87,0.72]
[1755900750189,11.1143403,199.88,199.87,0.72]
[1755900750397,54.1543403,199.88,199.87,0.72]
[1755900751103,43.04,199.88,199.87,0.03]
[1755900751410,54.1543403,199.88,199.87,0.03]
[1755900751766,43.04,199.88,199.87,0.03]
[1755900752189,54.1543403,199.88,199.87,0.03]
[1755900752603,43.04,199.88,199.87,0.03]
[1755900752915,54.1543403,199.88,199.87,0.03]
[1755900755306,68.03425745,199.88,199.87,0.03]
[1755900755818,56.91991715,199.88,199.87,0.03]
[1755900756010,68.03425745,199.88,199.87,0.03]
[1755900757190,39.59559401,199.84,199.83,0.03]
[1755900757394,83.19991715,199.84,199.83,0.03]
[1755900757693,57.19991715,199.84,199.83,0.03]
[1755900758003,11.1143403,199.84,199.83,0.72]
[1755900758206,54.4143403,199.84,199.83,0.72]
[1755900758518,54.4143403,199.84,199.83,0.03]
[1755900758828,54.4143403,199.84,199.83,0.72]
[1755900759030,11.1143403,199.84,199.83,0.72]
[1755900759321,43.28,199.84,199.83,0.03]
[1755900759527,43.28,199.84,199.83,0.72]
[1755900759706,54.3943403,199.84,199.83,0.03]
[1755900760404,68.27425745,199.84,199.83,0.03]
[1755900760606,43.28,199.84,199.83,0.03]
[1755900760820,54.3343403,199.84,199.83,0.03]
[1755900761125,43.22,199.84,199.83,0.72]
[1755900761293,54.3343403,199.84,199.83,0.72]
[1755900761719,0.28432314,199.87,199.83,0.72]
[1755900761905,11.1143403,199.84,199.83,0.03]
[1755900762217,43.18,199.84,199.83,0.03]
[1755900762424,43.18,199.84,199.83,0.72]
[1755900762425,49.95122287,199.84,199.83,0.72]
[1755900762590,43.18,199.84,199.83,0.72]
[1755900762794,49.95122287,199.84,199.83,0.72]
[1755900763294,43.14,199.84,199.83,0.03]
[1755900763494,49.91122287,199.84,199.83,0.03]
[1755900763714,0.28432314,199.87,199.83,0.03]
[1755900763894,6.77122287,199.84,199.83,0.03]
[1755900764094,49.89122287,199.84,199.83,0.03]
[1755900764297,43.12,199.84,199.83,0.03]
[1755900764509,49.89122287,199.84,199.83,0.03]
[1755900764704,0.28432314,199.87,199.83,0.72]
[1755900764921,6.77122287,199.84,199.83,0.72]
[1755900765108,49.85122287,199.84,199.83,0.72]
[1755900767107,49.83122287,199.84,199.83,0.72]
[1755900767413,49.83122287,199.84,199.83,0.03]
[1755900767724,6.77122287,199.84,199.83,0.03]
[1755900767909,49.83122287,199.84,199.83,0.03]
[1755900768107,6.77122287,199.84,199.83,0.03]
[1755900768311,43.06,199.84,199.83,0.72]
[1755900768620,49.83122287,199.84,199.83,0.72]
[1755900769634,63.71114002,199.84,199.83,0.03]
[1755900770924,20.65114002,199.84,199.83,0.03]
[1755900771114,63.71114002,199.84,199.83,0.03]
[1755900771925,20.65114002,199.84,199.83,0.03]
[1755900772132,63.71114002,199.84,199.83,0.03]
[1755900772332,56.93991715,199.84,199.83,0.03]
[1755900772728,63.71114002,199.84,199.83,0.03]
[1755900775014,56.93991715,199.84,199.83,0.03]
[1755900775210,63.71114002,199.84,199.83,0.03]
[1755900776207,63.71114002,199.84,199.72,6.77122287]
[1755900776408,6.77122287,199.78,199.75,26.0]
[1755900776647,43.06,199.77,199.72,6.77122287]
[1755900776816,43.06,199.77,199.67,4.05460019]
[1755900776817,6.77122287,199.74,199.67,4.05460019]
[1755900777022,6.77122287,199.72,199.66,6.77122287]
[1755900777221,43.06,199.71,199.69,26.0]
[1755900777539,43.06,199.71,199.66,6.77122287]
[1755900777842,6.77122287,199.68,199.61,10.83006303]
[1755900778030,49.83122287,199.67,199.64,26.0]
[1755900778237,49.83122287,199.66,199.63,26.0]
[1755900778548,49.83122287,199.66,199.65,0.69]
[1755900780119,43.06,199.66,199.65,0.69]
[1755900780436,13.59559401,199.72,199.65,0.69]
[1755900780437,13.59559401,199.77,199.68,26.0]
[1755900780638,14.28559401,199.8,199.69,7.46122287]
[1755900780813,6.77122287,199.75,199.7,0.69]
[1755900781014,49.83122287,199.74,199.7,0.69]
[1755900781213,43.06,199.73,199.7,0.69]
[1755900781513,43.06,199.73,199.71,0.69]
[1755900781837,43.06,199.73,199.72,0.69]
[1755900782624,6.77122287,199.74,199.72,0.69]
[1755900782940,43.06,199.73,199.67,6.77122287]
[1755900783145,6.77122287,199.7,199.65,26.0]
[1755900783342,43.06,199.69,199.67,26.0]
[1755900783543,43.06,199.69,199.68,0.69]
[1755900784541,49.83122287,199.69,199.68,0.69]
[1755900784729,43.06,199.69,199.68,0.69]
[1755900785645,6.77122287,199.7,199.68,0.69]
[1755900785842,6.77122287,199.7,199.67,26.0]
[1755900785843,43.06,199.69,199.67,26.0]
[1755900786350,43.06,199.69,199.68,0.69]
[1755900789346,6.77122287,199.7,199.68,0.69]
[1755900789653,43.06,199.69,199.68,0.69]
[1755900789950,43.06,199.69,199.67,26.0]
[1755900790420,43.06,199.69,199.68,0.69]
[1755900790947,43.04,199.69,199.68,26.69]
[1755900791841,6.77122287,199.73,199.68,26.69]
[1755900792046,43.04,199.72,199.69,0.69]
[1755900792350,43.04,199.72,199.7,0.69]
[1755900792534,14.28559401,199.77,199.68,26.0]
[1755900792854,6.77122287,199.73,199.71,0.69]
[1755900793052,43.04,199.72,199.71,0.69]
[1755900795350,6.77122287,199.73,199.66,0.03]
[1755900795525,49.81122287,199.72,199.67,0.69]
[1755900795726,43.04,199.71,199.67,0.69]
[1755900796144,6.77122287,199.72,199.67,0.69]
[1755900796453,43.04,199.7,199.67,0.69]
[1755900797350,43.04,199.7,199.66,0.03]
[1755900797529,6.77122287,199.68,199.66,0.03]
[1755900797731,43.04,199.67,199.66,0.72]
[1755900797926,50.50122287,199.67,199.66,0.03]
[1755900799958,43.73,199.67,199.66,0.03]
[1755900800257,64.09681688,199.67,199.66,0.03]
[1755900800454,64.38114002,199.67,199.66,0.03]
[1755900801342,13.87991715,199.66,199.45,15.05]
[1755900801549,7.05554601,199.64,199.54,0.69]
[1755900801746,50.07554601,199.64,199.54,26.69]
[1755900801951,64.36114002,199.64,199.54,0.69]
[1755900802456,0.28432314,199.63,199.52,0.69]
[1755900802642,43.71,199.62,199.52,26.69]
[1755900802837,6.77122287,199.56,199.52,26.69]
[1755900803032,43.02,199.55,199.53,0.69]
[1755900803237,43.02,199.55,199.52,26.0]
[1755900803459,43.02,199.55,199.53,0.69]
[1755900803957,43.02,199.55,199.51,4.03010427]
[1755900804162,43.02,199.55,199.49,26.0]
[1755900804163,43.02,199.55,199.53,0.69]
[1755900804338,49.79122287,199.55,199.51,4.00034606]
[1755900804657,49.79122287,199.55,199.52,0.69]
[1755900804658,43.02,199.55,199.52,0.69]
[1755900804842,43.02,199.55,199.53,0.69]
[1755900805252,6.77122287,199.54,199.46,0.1]
[1755900805457,13.59559401,199.53,199.46,0.1]
[1755900805653,6.77122287,199.47,199.46,0.1]
[1755900805960,49.79122287,199.47,199.46,0.1]
[1755900806467,43.02,199.47,199.46,0.1]
[1755900806635,54.17260868,199.47,199.46,0.1]
[1755900806837,43.02,199.47,199.46,0.1]
[1755900807034,0.66,199.53,199.46,0.81]
[1755900807263,14.25559401,199.58,199.5,26.0]
[1755900807433,14.25559401,199.58,199.51,0.71]
[1755900807434,11.15260868,199.55,199.51,0.71]
[1755900807637,0.66,199.58,199.51,0.71]
[1755900807833,0.66,199.58,199.53,26.0]
[1755900807834,43.02,199.57,199.53,26.0]
[1755900808059,43.02,199.57,199.54,0.71]
[1755900808360,54.17260868,199.57,199.54,0.71]
[1755900808658,54.17260868,199.57,199.54,26.71]
[1755900808959,43.02,199.56,199.54,26.0]
[1755900809142,11.15260868,199.58,199.55,0.71]
[1755900809463,43.02,199.57,199.55,0.71]
[1755900809665,0.66,199.62,199.49,0.28432314]
[1755900809965,11.15260868,199.62,199.56,11.86260868]
[1755900810263,43.02,199.61,199.57,0.71]
[1755900810448,43.02,199.61,199.58,0.71]
[1755900811761,43.02,199.61,199.56,26.71]
[1755900811762,54.17260868,199.61,199.56,26.71]
[1755900811933,54.17260868,199.61,199.56,26.0]
[1755900812134,54.17260868,199.61,199.57,0.71]
[1755900812442,11.15260868,199.58,199.56,26.0]
[1755900812636,43.02,199.57,199.56,26.0]
[1755900814168,54.83260868,199.57,199.5,0.71]
[1755900814347,43.02,199.57,199.52,11.15260868]
[1755900814549,43.0,199.56,199.53,0.71]
[1755900814746,0.13,199.64,199.55,11.15260868]
[1755900814949,11.15260868,199.61,199.56,0.71]
[1755900815144,43.0,199.6,199.57,0.71]
[1755900815360,0.13,199.68,199.6,26.0]
[1755900815666,43.0,199.66,199.6,26.0]
[1755900815959,11.15260868,199.63,199.58,0.71]
[1755900816167,43.0,199.62,199.6,26.0]
[1755900816368,11.28260868,199.61,199.56,26.0]
[1755900816536,11.15260868,199.6,199.56,0.71]
[1755900816737,11.15260868,199.58,199.52,11.15260868]
[1755900816959,43.0,199.57,199.54,0.71]
[1755900817158,43.0,199.57,199.55,26.71]
[1755900817344,43.0,199.57,199.55,26.0]
[1755900817555,43.0,199.57,199.56,0.71]
[1755900817943,43.0,199.6,199.59,26.0]
[1755900818370,43.0,199.6,199.59,26.71]
[1755900818568,43.0,199.6,199.59,0.71]
[1755900819062,43.0,199.61,199.6,26.0]
[1755900819438,43.0,199.61,199.6,26.71]
[1755900819858,0.06,199.63,199.6,0.71]
[1755900820058,43.0,199.62,199.6,26.71]
[1755900820465,43.0,199.62,199.56,0.03]
[1755900820466,11.41260868,199.61,199.56,0.03]
[1755900820677,11.15260868,199.59,199.56,0.03]
[1755900820858,43.0,199.58,199.56,0.03]
[1755900821858,11.15260868,199.62,199.57,0.71]
[1755900822176,42.98,199.61,199.58,0.71]
[1755900822750,42.98,199.61,199.59,0.71]
[1755900822947,42.98,199.61,199.58,11.15260868]
[1755900823146,42.98,199.61,199.6,0.71]
[1755900823378,42.98,199.61,199.59,0.71]
[1755900824281,13.85559401,199.6,199.56,0.03]
[1755900824581,0.26,199.6,199.56,0.03]
[1755900824756,54.13260868,199.59,199.56,0.03]
[1755900824951,42.98,199.59,199.56,0.03]
[1755900825153,54.13260868,199.59,199.56,0.03]
[1755900825360,42.98,199.59,199.56,0.03]